bitfinex/quotes_BTCUSD_20250129
["timestamp","ask_amount","ask_price","bid_price","bid_amount"]
[1738180324435,0.00069789,103810.0,103800.0,0.144508]
[1738180324436,0.00262669,103810.0,103800.0,0.144508]
[1738180324637,0.00169789,103810.0,103800.0,0.144508]
[1738180325039,0.00069789,103810.0,103800.0,0.14547136]
[1738180325241,0.00269789,103810.0,103800.0,0.14547127]
[1738180325785,0.00069789,103810.0,103800.0,0.00096327]
[1738180325990,0.144508,103800.0,103790.0,0.0001418]
[1738180326187,0.45172537,103800.0,103790.0,0.0001418]
[1738180326391,0.294522,103790.0,103780.0,0.0001418]
[1738180326719,0.39176516,103790.0,103780.0,0.0001418]
[1738180327163,0.09724316,103790.0,103780.0,0.0001418]
[1738180327380,0.09724316,103790.0,103740.0,0.39772159]
[1738180327381,0.29995116,103790.0,103740.0,0.2]
[1738180327566,0.43544396,103780.0,103750.0,0.144576]
[1738180327772,0.14455,103770.0,103750.0,0.144572]
[1738180327911,0.09817196,103770.0,103750.0,0.33734]
[1738180328341,0.09817196,103770.0,103750.0,0.144578]
[1738180328342,0.09724316,103770.0,103750.0,0.144578]
[1738180328538,0.09817196,103760.0,103750.0,0.144578]
[1738180328740,0.09723816,103760.0,103750.0,0.144578]
[1738180328967,0.24180916,103760.0,103750.0,0.00047891]
[1738180329120,0.45918408,103760.0,103750.0,0.00047891]
[1738180329328,0.59456216,103760.0,103750.0,0.00047891]
[1738180329531,0.03,103750.0,103740.0,0.2]
[1738180329744,0.45954275,103750.0,103740.0,0.16012592]
[1738180329951,0.60954275,103750.0,103740.0,0.12716318]
[1738180330156,0.337491,103710.0,103690.0,0.0001418]
[1738180330367,0.09724316,103700.0,103690.0,0.14494658]
[1738180330788,0.01,103740.0,103710.0,0.144632]
[1738180331031,0.24185616,103730.0,103710.0,0.144632]
[1738180331236,0.337364,103750.0,103730.0,0.144604]
[1738180331455,0.09724316,103750.0,103740.0,0.144589]
[1738180331653,0.09724316,103750.0,103740.0,0.144592]
[1738180332072,0.347266,103780.0,103760.0,0.144557]
[1738180332290,0.09724316,103770.0,103760.0,0.192751]
[1738180332486,0.04878,103780.0,103760.0,0.192741]
[1738180332734,0.09724316,103770.0,103760.0,0.14456]
[1738180332938,0.09724316,103770.0,103750.0,0.530086]
[1738180333183,0.04878,103780.0,103770.0,0.14455]
[1738180333412,0.29149196,103780.0,103770.0,0.14455]
[1738180333606,0.14602316,103780.0,103770.0,0.14455]
[1738180333810,0.14695196,103780.0,103770.0,0.14455]
[1738180334007,0.14602316,103780.0,103770.0,0.14455]
[1738180334298,0.0497088,103780.0,103770.0,0.14455]
[1738180334514,0.04878,103780.0,103770.0,0.14455]
[1738180335571,0.05278,103780.0,103770.0,0.39398403]
[1738180335784,0.05278,103780.0,103770.0,0.4902637]
[1738180336003,0.05278,103780.0,103770.0,0.24279316]
[1738180336206,0.05278,103780.0,103770.0,0.4902637]
[1738180336414,0.004,103780.0,103770.0,0.4902637]
[1738180336616,0.004,103780.0,103770.0,0.24279316]
[1738180336825,0.004,103780.0,103770.0,0.14555]
[1738180337035,0.004,103780.0,103770.0,0.14651348]
[1738180337252,0.14612969,103810.0,103780.0,0.529947]
[1738180337253,0.144512,103800.0,103780.0,0.529947]
[1738180337460,0.09817196,103790.0,103780.0,0.144528]
[1738180337670,0.0009288,103790.0,103780.0,0.144528]
[1738180337878,0.2956815,103810.0,103790.0,0.337196]
[1738180338079,0.0011765,103810.0,103800.0,0.144508]
[1738180338294,0.24291366,103810.0,103800.0,0.144508]
[1738180338502,0.09841966,103810.0,103800.0,0.144508]
[1738180338773,0.0011765,103810.0,103800.0,0.144508]
[1738180338978,0.09841966,103810.0,103800.0,0.144508]
[1738180339195,0.0031765,103810.0,103800.0,0.144508]
[1738180340022,0.0031765,103810.0,103800.0,0.14547132]
[1738180340439,0.0011765,103810.0,103800.0,0.14547132]
[1738180340641,0.0031765,103810.0,103800.0,0.14547126]
[1738180340846,0.0031765,103810.0,103800.0,0.24175116]
[1738180341304,0.0001419,103850.0,103840.0,0.144453]
[1738180341508,0.43549645,103850.0,103820.0,0.385254]
[1738180341702,0.43549645,103850.0,103840.0,0.144453]
[1738180341703,0.09845745,103850.0,103840.0,0.144453]
[1738180342112,0.00028549,103850.0,103840.0,0.144453]
[1738180342318,0.00028549,103850.0,103840.0,0.14541593]
[1738180342951,0.00028549,103850.0,103840.0,0.144453]
[1738180343151,0.00028549,103850.0,103840.0,0.1454159]
[1738180343569,0.00355969,103850.0,103840.0,0.24365906]
[1738180343747,0.00355969,103850.0,103840.0,0.4901667]
[1738180344996,0.00355969,103850.0,103840.0,0.44179421]
[1738180345170,0.00355969,103850.0,103840.0,0.4901667]
[1738180345380,0.00347155,103850.0,103840.0,0.24269616]
[1738180345507,0.00347155,103850.0,103840.0,0.001]
[1738180345725,0.00347155,103850.0,103840.0,0.145453]
[1738180345931,0.00347155,103850.0,103840.0,0.14641594]
[1738180346389,0.00347155,103850.0,103840.0,0.145453]
[1738180346608,0.00347155,103850.0,103840.0,0.14641591]
[1738180347101,0.00347155,103850.0,103840.0,0.49112954]
[1738180347311,0.00347155,103850.0,103840.0,0.4901667]
[1738180347312,0.00061001,103850.0,103840.0,0.4901667]
[1738180347713,0.00029821,103870.0,103850.0,0.144439]
[1738180347915,0.00029821,103870.0,103860.0,0.61780116]
[1738180347916,0.00015611,103870.0,103860.0,0.61780116]
[1738180348123,0.001,103900.0,103890.0,0.144383]
[1738180348430,0.00114359,103900.0,103890.0,0.49005891]
[1738180348632,0.00114359,103900.0,103890.0,0.4890967]
[1738180348836,0.00114359,103900.0,103890.0,0.48268542]
[1738180349334,0.00114359,103900.0,103890.0,1.98268542]
[1738180349534,0.00114359,103900.0,103890.0,0.48268542]
[1738180350451,0.00214359,103900.0,103890.0,0.48268542]
[1738180351002,0.00120693,103900.0,103890.0,0.60778542]
[1738180351228,3.4e-07,103900.0,103890.0,0.61778542]
[1738180351441,4e-08,103910.0,103900.0,0.144369]
[1738180351577,4e-08,103910.0,103900.0,0.24161216]
[1738180351925,4e-08,103910.0,103900.0,0.144369]
[1738180352139,0.01,103880.0,103870.0,0.00973788]
[1738180352341,0.144469,103830.0,103800.0,0.385345]
[1738180352559,0.24747054,103810.0,103800.0,0.28991016]
[1738180352761,0.24747054,103810.0,103800.0,0.192667]
[1738180353386,0.24747054,103830.0,103810.0,0.33714]
[1738180353726,0.24747054,103830.0,103810.0,0.144494]
[1738180353727,0.3447137,103830.0,103810.0,0.144494]
[1738180353903,0.09724316,103820.0,103810.0,0.144494]
[1738180354077,0.09724316,103820.0,103800.0,0.338169]
[1738180354284,0.09724316,103820.0,103800.0,0.001]
[1738180354494,0.00120422,103810.0,103790.0,0.14499461]
[1738180354676,0.09724316,103810.0,103790.0,0.14499461]
[1738180354872,0.09724316,103810.0,103790.0,0.33769061]
[1738180355071,0.09724316,103810.0,103790.0,0.00047861]
[1738180355072,0.0984474,103800.0,103790.0,0.00047861]
[1738180355270,0.4229554,103800.0,103790.0,0.00047861]
[1738180355473,0.09724316,103800.0,103790.0,0.00047861]
[1738180355839,0.05878,103830.0,103800.0,0.192672]
[1738180355973,0.09724316,103830.0,103810.0,0.144494]
[1738180356197,0.09724316,103830.0,103810.0,0.337142]
[1738180356381,0.09724316,103830.0,103820.0,0.14448]
[1738180356625,0.14444,103850.0,103820.0,0.14448]
[1738180356772,0.09724316,103840.0,103830.0,0.144466]
[1738180357324,0.002,103830.0,103810.0,0.193648]
[1738180357548,0.002,103830.0,103820.0,0.19314543]
[1738180357763,0.002,103830.0,103820.0,1.69314543]
[1738180357991,0.14562878,103860.0,103840.0,0.144452]
[1738180358126,0.09844694,103860.0,103840.0,0.144452]
[1738180358327,0.09844694,103860.0,103840.0,0.33719659]
[1738180358558,0.09844694,103860.0,103840.0,0.14455559]
[1738180358716,0.09724316,103850.0,103840.0,0.00014359]
[1738180358924,0.09724316,103850.0,103840.0,0.14459659]
[1738180359165,0.12153055,103850.0,103840.0,0.00014359]
[1738180359366,0.174493,103840.0,103830.0,0.001]
[1738180359568,0.144507,103810.0,103780.0,0.337234]
[1738180359798,0.09724316,103810.0,103790.0,0.337201]
[1738180360097,0.4356084,103810.0,103780.0,0.337231]
[1738180360313,0.0984474,103810.0,103790.0,0.144519]
[1738180360522,0.73458154,103830.0,103800.0,0.144508]
[1738180360729,0.09724316,103820.0,103800.0,0.337179]
[1738180360948,0.24294136,103820.0,103790.0,0.144519]
[1738180361151,0.25747054,103810.0,103770.0,0.14516451]
[1738180361355,0.33841547,103800.0,103770.0,0.19335151]
[1738180361553,0.33841547,103800.0,103790.0,0.001]
[1738180361782,0.43445416,103800.0,103790.0,0.001]
[1738180361986,0.69181092,103800.0,103790.0,0.001]
[1738180362196,0.60445416,103800.0,103790.0,0.001]
[1738180362404,0.59445416,103800.0,103790.0,0.001]
[1738180362612,0.61445416,103800.0,103790.0,0.001]
[1738180362819,0.60445416,103800.0,103790.0,0.001]
[1738180363030,0.144588,103750.0,103720.0,0.144612]
[1738180363233,0.09724316,103750.0,103730.0,0.192793]
[1738180363442,0.43579713,103750.0,103730.0,0.144597]
[1738180363645,0.43583513,103740.0,103710.0,0.1929748]
[1738180363823,0.29123913,103740.0,103710.0,0.0001418]
[1738180364063,0.09844813,103740.0,103720.0,0.144612]
[1738180364272,0.09724316,103740.0,103730.0,0.144606]
[1738180364474,0.337306,103770.0,103750.0,0.144573]
[1738180364683,0.09844802,103760.0,103740.0,0.337364]
[1738180364893,0.24301302,103760.0,103740.0,0.53014]
[1738180365108,0.24301202,103760.0,103740.0,0.53015]
[1738180365316,0.43576502,103760.0,103730.0,0.192792]
[1738180365521,0.09724316,103760.0,103750.0,0.144578]
[1738180365699,0.00120471,103780.0,103770.0,0.192731]
[1738180365898,0.14602316,103780.0,103770.0,0.192731]
[1738180366855,0.04878,103780.0,103770.0,0.192731]
[1738180367160,0.04878,103780.0,103770.0,0.19287459]
[1738180367358,0.05778,103780.0,103770.0,0.19287459]
[1738180367879,0.00904,103780.0,103770.0,0.19287459]
[1738180368087,4e-05,103780.0,103770.0,0.19287459]
[1738180368283,4e-05,103780.0,103770.0,0.19339236]
[1738180368941,4e-05,103780.0,103770.0,0.29063552]
[1738180369146,4e-05,103780.0,103770.0,0.29011775]
[1738180369344,4e-05,103780.0,103770.0,0.33851775]
[1738180369764,4e-05,103840.0,103830.0,0.144466]
[1738180369982,0.09728316,103840.0,103830.0,0.144466]
[1738180370195,0.43435016,103840.0,103820.0,0.529733]
[1738180370490,0.09728316,103840.0,103830.0,0.144466]
[1738180371049,0.09776139,103840.0,103830.0,0.144466]
[1738180371401,0.10676139,103840.0,103830.0,0.145466]
[1738180372421,0.10676139,103840.0,103830.0,0.144466]
[1738180372422,0.09776139,103840.0,103830.0,0.144466]
[1738180372736,0.58603228,103840.0,103820.0,0.144471]
[1738180373015,0.58603228,103840.0,103830.0,0.144466]
[1738180373016,0.00151823,103840.0,103830.0,0.144466]
[1738180373169,0.00051823,103840.0,103830.0,0.144466]
[1738180373375,0.00051823,103840.0,103830.0,0.14498243]
[1738180373578,0.00151823,103840.0,103830.0,0.14498243]
[1738180373785,0.00120373,103870.0,103860.0,0.144425]
[1738180373983,0.09844689,103870.0,103860.0,0.144425]
[1738180374593,0.09844689,103870.0,103850.0,0.192569]
[1738180374824,0.09844682,103860.0,103850.0,0.192569]
[1738180375037,0.25622646,103860.0,103830.0,0.385219]
[1738180375225,0.25622646,103860.0,103830.0,0.38536259]
[1738180375226,0.44880846,103860.0,103830.0,0.38536259]
[1738180375406,0.44880846,103860.0,103840.0,0.144451]
[1738180375619,0.64138546,103860.0,103840.0,0.337051]
[1738180375831,0.77710154,103850.0,103830.0,0.14460859]
[1738180376031,0.24290008,103840.0,103830.0,0.00014359]
[1738180376236,0.39169616,103840.0,103830.0,0.00014359]
[1738180376494,0.09724316,103840.0,103830.0,0.14460959]
[1738180376706,0.2484471,103840.0,103830.0,0.14460959]
[1738180376902,0.39169616,103840.0,103830.0,0.14460959]
[1738180377116,0.4201473,103840.0,103830.0,0.00014359]
[1738180377533,0.4221473,103840.0,103830.0,0.00014359]
[1738180378019,0.44953313,103840.0,103830.0,0.00014359]
[1738180378147,0.144497,103810.0,103780.0,0.320607]
[1738180378331,0.09844744,103800.0,103760.0,0.0814]
[1738180378547,0.09724316,103800.0,103780.0,0.192715]
[1738180378922,0.00134776,103810.0,103800.0,0.144508]
[1738180379240,0.00014338,103810.0,103800.0,0.1450251]
[1738180380475,0.00014338,103810.0,103800.0,0.24226826]
[1738180380588,0.00014338,103810.0,103800.0,0.4892217]
[1738180380802,0.00014338,103810.0,103800.0,0.5676217]
[1738180380999,0.00014338,103810.0,103800.0,0.32015116]
[1738180381845,0.00014338,103810.0,103800.0,0.5676217]
[1738180382047,0.00014338,103810.0,103800.0,0.31952324]
[1738180382317,3.8e-07,103810.0,103800.0,0.56699378]
[1738180382949,3.8e-07,103810.0,103800.0,0.53296481]
[1738180383353,3.8e-07,103810.0,103800.0,0.69765784]
[1738180383936,3.8e-07,103810.0,103800.0,0.69265784]
[1738180384679,0.00120372,103870.0,103860.0,0.144425]
[1738180384867,0.09859049,103870.0,103850.0,0.144434]
[1738180385064,0.09724316,103860.0,103820.0,0.337112]
[1738180385268,0.144468,103830.0,103800.0,0.320962]
[1738180385513,0.09724316,103820.0,103800.0,0.192662]
[1738180385684,0.2429371,103820.0,103770.0,0.33533242]
[1738180385882,0.1084471,103820.0,103810.0,0.144494]
[1738180386150,0.00120423,103830.0,103810.0,0.144494]
[1738180386277,0.04878,103850.0,103840.0,0.144443]
[1738180386475,0.14602316,103850.0,103830.0,0.385217]
[1738180386677,0.14602316,103850.0,103840.0,0.144453]
[1738180386678,0.14722691,103850.0,103840.0,0.144453]
[1738180386924,0.04878,103850.0,103840.0,0.14496932]
[1738180387130,0.04878,103850.0,103840.0,0.144453]
[1738180388484,0.05378,103850.0,103840.0,0.145453]
[1738180388695,0.005,103850.0,103840.0,0.39292354]
[1738180389071,0.14448,103820.0,103810.0,0.00047823]
[1738180389303,0.24292718,103820.0,103810.0,0.00047823]
[1738180389512,0.45543496,103820.0,103810.0,0.00047823]
[1738180389662,0.44543496,103820.0,103810.0,0.00047823]
[1738180390020,0.44843496,103820.0,103810.0,0.00047823]
[1738180390246,0.43472316,103820.0,103810.0,0.00047823]
[1738180390657,0.43403807,103820.0,103810.0,0.00047823]
[1738180390850,0.347245,103790.0,103770.0,0.14455]
[1738180391056,0.24298381,103780.0,103760.0,0.337294]
[1738180391367,0.24177916,103780.0,103760.0,0.530035]
[1738180391634,0.09724316,103780.0,103760.0,0.530035]
[1738180391843,0.0012047,103770.0,103740.0,0.0001422]
[1738180392055,0.144578,103750.0,103740.0,0.0001422]
[1738180392281,0.09844819,103750.0,103740.0,0.1447342]
[1738180392493,0.09724316,103760.0,103750.0,0.19276]
[1738180392704,0.00120482,103770.0,103750.0,0.19276]
[1738180392919,0.09844798,103770.0,103760.0,0.144562]
[1738180393124,4e-05,103780.0,103770.0,0.14455]
[1738180393893,4e-05,103780.0,103770.0,0.14506795]
[1738180395337,8e-05,103780.0,103770.0,0.24231111]
[1738180395538,8e-05,103780.0,103770.0,0.24179316]
[1738180396177,0.00012,103780.0,103770.0,0.14455]
[1738180396378,0.00012,103780.0,103770.0,0.1446921]
[1738180396577,0.00016,103780.0,103770.0,0.1446921]
[1738180396783,0.00016,103780.0,103770.0,0.14920996]
[1738180396981,0.0002,103780.0,103770.0,0.1486921]
[1738180397391,0.00024,103780.0,103770.0,0.14520979]
[1738180397545,0.00024,103780.0,103770.0,0.24245295]
[1738180397751,0.00024,103780.0,103770.0,0.1446921]
[1738180397955,0.24322369,103780.0,103770.0,0.1446921]
[1738180398273,0.00024,103780.0,103770.0,0.1446921]
[1738180398621,0.00024,103780.0,103770.0,0.1466921]
[1738180399133,0.00024,103780.0,103770.0,0.1446921]
[1738180399336,0.00024,103780.0,103770.0,0.1486921]
[1738180399603,0.24201916,103780.0,103770.0,0.0041421]
[1738180399776,0.09748316,103780.0,103770.0,0.1486921]
[1738180400001,0.09748316,103780.0,103770.0,0.1446921]
[1738180400445,0.09748316,103780.0,103770.0,0.0021421]
[1738180400446,0.44549068,103780.0,103770.0,0.0021421]
[1738180400773,0.69296122,103780.0,103770.0,0.0021421]
[1738180401202,0.144578,103750.0,103740.0,0.00028558]
[1738180401365,0.24302621,103750.0,103740.0,0.00028558]
[1738180401578,0.09724316,103750.0,103740.0,0.14487758]
[1738180401801,0.09844813,103750.0,103740.0,0.14487758]
[1738180402002,0.00120492,103760.0,103740.0,0.14487758]
[1738180402249,0.09724316,103750.0,103740.0,0.14487758]
[1738180402479,0.09844812,103750.0,103740.0,0.14487758]
[1738180402639,0.01,103770.0,103740.0,0.14487758]
[1738180402640,0.337305,103770.0,103740.0,0.14487758]
[1738180402947,0.145578,103750.0,103740.0,0.00028558]
[1738180403164,0.24282116,103750.0,103740.0,0.14487758]
[1738180403334,0.24282116,103750.0,103740.0,0.00028558]
[1738180403335,0.24182116,103750.0,103740.0,0.00028558]
[1738180403535,0.24582116,103750.0,103740.0,0.00028558]
[1738180403804,0.10124316,103750.0,103740.0,0.14487758]
[1738180404131,0.24582116,103750.0,103740.0,0.00028558]
[1738180404349,0.33823278,103750.0,103740.0,0.00028558]
[1738180404545,0.10124316,103750.0,103740.0,0.14487758]
[1738180404811,0.09724316,103750.0,103740.0,0.14487758]
[1738180405013,0.09724316,103750.0,103740.0,0.00028558]
[1738180405014,0.24182116,103750.0,103740.0,0.00028558]
[1738180405292,0.09924316,103750.0,103740.0,0.14487758]
[1738180405721,0.002,103750.0,103740.0,0.14487758]
[1738180405924,0.14575893,103770.0,103740.0,0.00028558]
[1738180406123,0.09724316,103760.0,103750.0,0.192755]
[1738180406405,0.09724316,103760.0,103750.0,0.144578]
[1738180406938,0.144555,103770.0,103750.0,0.144578]
[1738180407174,0.09724316,103760.0,103740.0,0.53042558]
[1738180407375,0.09724316,103760.0,103750.0,0.144578]
[1738180407583,0.09724316,103760.0,103740.0,0.33764758]
[1738180407788,0.09724316,103750.0,103740.0,0.00028558]
[1738180407991,0.24182116,103750.0,103740.0,0.00028558]
[1738180408165,0.09724316,103750.0,103740.0,0.14487758]
[1738180408991,0.09724316,103750.0,103740.0,0.33765458]
[1738180409197,0.337307,103770.0,103750.0,0.337345]
[1738180409414,0.098448,103760.0,103750.0,0.192769]
[1738180409615,0.39180616,103770.0,103760.0,0.144564]
[1738180409824,0.09724316,103770.0,103760.0,0.144564]
[1738180409975,0.09844789,103770.0,103760.0,0.144564]
[1738180410158,0.09724316,103770.0,103760.0,0.144564]
[1738180410575,0.00024,103780.0,103760.0,0.144564]
[1738180410821,0.00024,103780.0,103770.0,0.14455]
[1738180411021,0.00024,103780.0,103770.0,0.14506772]
[1738180411587,0.00024,103780.0,103770.0,0.36759316]
[1738180411801,0.00029842,103810.0,103800.0,0.144508]
[1738180412004,0.00029842,103810.0,103800.0,0.14502526]
[1738180412203,0.00029842,103810.0,103800.0,0.14402526]
[1738180412697,0.00029842,103810.0,103800.0,0.143508]
[1738180412898,0.00029842,103810.0,103800.0,0.24126803]
[1738180413102,0.00077695,103810.0,103800.0,0.6151217]
[1738180413508,0.00077695,103810.0,103800.0,0.36765116]
[1738180414200,9.5e-07,103810.0,103800.0,0.6151217]
[1738180414822,4e-05,103850.0,103840.0,0.144453]
[1738180415027,0.00017833,103850.0,103840.0,0.144453]
[1738180416114,3.3e-07,103850.0,103840.0,0.76178283]
[1738180416315,0.00029904,103890.0,103880.0,0.144397]
[1738180416477,0.00043734,103890.0,103880.0,0.53376312]
[1738180416670,0.00043734,103890.0,103880.0,0.61056312]
[1738180416893,3.4e-07,103890.0,103880.0,0.61056312]
[1738180417738,3.4e-07,103890.0,103880.0,2.11056312]
[1738180417941,3.4e-07,103890.0,103880.0,0.61056312]
[1738180418157,0.0972435,103890.0,103880.0,0.144397]
[1738180418768,3.4e-07,103890.0,103880.0,0.144397]
[1738180419572,3.4e-07,103890.0,103880.0,0.14891228]
[1738180419788,3.4e-07,103890.0,103880.0,0.144397]
[1738180419988,0.0972435,103890.0,103870.0,0.529469]
[1738180420143,0.0972435,103890.0,103880.0,0.144397]
[1738180420577,0.00029876,103890.0,103880.0,0.144397]
[1738180421013,0.09754192,103890.0,103880.0,0.144397]
[1738180421213,0.29005492,103890.0,103860.0,0.385116]
[1738180421372,0.24164016,103880.0,103850.0,0.385163]
[1738180421567,0.24164016,103880.0,103860.0,0.14442]
[1738180421805,0.43417016,103880.0,103860.0,0.144424]
[1738180422003,0.48231516,103880.0,103850.0,0.337015]
[1738180422205,0.00120362,103870.0,103860.0,0.144425]
[1738180422614,0.33720876,103890.0,103870.0,0.144411]
[1738180422615,0.00120345,103880.0,103870.0,0.144411]
[1738180422819,0.09724316,103880.0,103860.0,0.336979]
[1738180423018,0.09844661,103870.0,103850.0,0.337]
[1738180423222,0.09844661,103870.0,103850.0,0.385156]
[1738180423448,0.09844661,103870.0,103860.0,0.144425]
[1738180423845,0.09844661,103870.0,103850.0,0.529585]
[1738180424208,0.33453347,103870.0,103840.0,0.192589]
[1738180424335,0.33453347,103870.0,103840.0,0.337041]
[1738180424336,0.43541161,103870.0,103840.0,0.337041]
[1738180424544,0.336993,103860.0,103840.0,0.144452]
[1738180424747,0.0984469,103850.0,103830.0,0.144456]
[1738180424949,0.0984469,103850.0,103810.0,0.337134]
[1738180424950,0.337064,103840.0,103810.0,0.337134]
[1738180425172,0.09844719,103830.0,103820.0,0.337113]
[1738180425373,0.342578,103860.0,103830.0,0.337084]
[1738180425579,0.43547304,103850.0,103830.0,0.144462]
[1738180426045,0.43547304,103850.0,103830.0,0.00013796]
[1738180426046,0.48363204,103850.0,103830.0,0.00013796]
[1738180426254,0.62808004,103850.0,103830.0,0.33722496]
[1738180426465,0.09844704,103850.0,103830.0,0.33722296]
[1738180426610,0.09724316,103850.0,103840.0,0.144453]
[1738180427047,0.10224316,103850.0,103830.0,0.33721296]
[1738180427248,0.10224316,103850.0,103840.0,0.144453]
[1738180427459,0.385073,103880.0,103850.0,0.337001]
[1738180427664,0.144427,103860.0,103830.0,1.83721396]
[1738180427820,0.09824316,103850.0,103840.0,0.144451]
[1738180428037,0.001,103850.0,103840.0,0.144451]
[1738180428240,0.001,103850.0,103840.0,0.14496732]
[1738180428436,0.47087122,103900.0,103830.0,1.50013796]
[1738180428638,0.09724316,103890.0,103880.0,0.144397]
[1738180428844,0.09724316,103890.0,103870.0,0.336934]
[1738180428845,0.24283052,103890.0,103870.0,0.336934]
[1738180429046,0.09844652,103890.0,103870.0,0.336934]
[1738180429255,0.14560038,103880.0,103860.0,0.529533]
[1738180429456,0.24165816,103870.0,103850.0,0.337999]
[1738180429661,0.00120362,103860.0,103850.0,0.145439]
[1738180429857,0.24287178,103860.0,103850.0,0.00013796]
[1738180430126,0.28095534,103860.0,103850.0,0.00013796]
[1738180430314,0.28095534,103860.0,103840.0,0.144451]
[1738180430315,0.00086204,103850.0,103840.0,0.144451]
[1738180430742,0.24374788,103850.0,103830.0,0.19261]
[1738180430913,0.09844691,103840.0,103830.0,0.00013833]
[1738180431152,0.24289991,103840.0,103830.0,0.00013833]
[1738180431333,0.09724316,103840.0,103830.0,0.00013833]
[1738180431529,0.09724316,103840.0,103830.0,0.14460433]
[1738180432948,0.09724316,103840.0,103830.0,0.00028033]
[1738180433130,0.24169616,103840.0,103830.0,0.00028033]
[1738180433558,0.6687678,103840.0,103830.0,0.00028033]
[1738180433761,0.7075478,103840.0,103830.0,0.00028033]
[1738180433989,0.529889,103800.0,103780.0,0.144536]
[1738180434192,0.09724316,103790.0,103780.0,0.14501453]
[1738180434537,0.09844764,103790.0,103780.0,0.00047853]
[1738180434737,0.39296964,103790.0,103780.0,0.00047853]
[1738180434936,0.41150984,103790.0,103780.0,0.00047853]
[1738180435186,0.16455,103770.0,103760.0,0.0101021]
[1738180435385,0.52006984,103770.0,103760.0,0.0101021]
[1738180435593,0.5418648,103770.0,103760.0,1e-08]
[1738180435762,0.294578,103750.0,103740.0,0.0001422]
[1738180435965,0.6718928,103750.0,103740.0,0.0001422]
[1738180436424,0.6488928,103750.0,103740.0,0.0001422]
[1738180436969,0.6718928,103750.0,103740.0,0.00028558]
[1738180437182,0.80206333,103750.0,103740.0,0.00128558]
[1738180437386,0.6808928,103750.0,103740.0,0.00128558]
[1738180437811,0.70574157,103750.0,103740.0,0.00128558]
[1738180438635,0.6438928,103750.0,103740.0,0.00028558]
[1738180438863,0.67034638,103750.0,103740.0,0.00128558]
[1738180439061,0.68034638,103750.0,103740.0,0.00128558]
[1738180439322,0.67034638,103750.0,103740.0,0.00028558]
[1738180439496,0.83048314,103750.0,103740.0,0.00028558]
[1738180439677,0.84948314,103750.0,103740.0,0.00128558]
[1738180439898,0.71096644,103750.0,103740.0,0.00128558]
[1738180440107,0.71196644,103750.0,103740.0,0.00028558]
[1738180440316,0.73496644,103750.0,103740.0,0.00028558]
[1738180440504,0.73496644,103750.0,103720.0,0.0001422]
[1738180440505,0.324606,103730.0,103720.0,0.0001422]
[1738180440735,0.6819208,103730.0,103720.0,0.00028598]
[1738180440945,0.82805756,103730.0,103720.0,0.00028598]
[1738180441388,0.7407008,103730.0,103720.0,0.00028598]
[1738180441602,0.15462,103720.0,103710.0,0.0001418]
[1738180441858,0.39306873,103720.0,103710.0,0.0001418]
[1738180442066,0.44684113,103720.0,103710.0,0.0001418]
[1738180442279,0.39186316,103720.0,103710.0,0.0001418]
[1738180442489,0.54061242,103720.0,103710.0,0.0001418]
[1738180442696,0.304648,103700.0,103690.0,0.0001418]
[1738180442906,0.6689628,103700.0,103690.0,0.0001418]
[1738180443155,0.294675,103680.0,103670.0,0.0001418]
[1738180443355,0.144689,103670.0,103660.0,0.01080546]
[1738180443560,0.40440283,103670.0,103660.0,0.01080546]
[1738180443765,0.40193216,103670.0,103660.0,0.01080546]
[1738180444017,0.42493216,103670.0,103660.0,0.0058019]
[1738180444198,0.44493216,103670.0,103660.0,0.0058019]
[1738180444441,0.44493216,103670.0,103660.0,0.00628129]
[1738180444647,0.43493216,103670.0,103660.0,0.00628129]
[1738180444859,0.41193216,103670.0,103660.0,0.00628129]
[1738180445081,0.39193216,103670.0,103660.0,0.00628129]
[1738180445506,0.09724316,103670.0,103660.0,0.15098429]
[1738180445733,0.09724316,103670.0,103660.0,0.15112629]
[1738180445939,0.10524316,103670.0,103660.0,0.15212629]
[1738180446358,0.24193216,103670.0,103660.0,0.15112629]
[1738180446562,0.25093216,103670.0,103660.0,0.00742329]
[1738180446991,0.43093216,103670.0,103660.0,0.00742329]
[1738180447198,0.44493216,103670.0,103660.0,0.00642329]
[1738180447405,0.44693216,103670.0,103660.0,0.00642329]
[1738180447610,0.44540713,103670.0,103660.0,0.00642329]
[1738180448655,0.49218713,103670.0,103660.0,0.00642329]
[1738180448857,0.48018713,103670.0,103660.0,0.00742329]
[1738180449060,0.44718713,103670.0,103660.0,0.00742329]
[1738180449263,0.30249813,103670.0,103660.0,0.00742329]
[1738180449464,0.28918713,103670.0,103660.0,0.00642329]
[1738180449676,0.15349813,103670.0,103660.0,0.15212629]
[1738180450093,0.05778,103670.0,103660.0,0.23404663]
[1738180450304,0.05778,103670.0,103660.0,0.37906945]
[1738180450515,0.05778,103670.0,103660.0,0.62614109]
[1738180450929,0.144609,103730.0,103710.0,0.144624]
[1738180451154,0.24186416,103720.0,103700.0,0.337489]
[1738180451368,0.144634,103710.0,103690.0,0.144658]
[1738180451574,0.294672,103690.0,103660.0,0.0873439]
[1738180451776,0.144689,103670.0,103660.0,0.0059439]
[1738180451978,0.09724316,103670.0,103660.0,0.1998799]
[1738180452227,0.09724316,103670.0,103660.0,0.20035929]
[1738180452430,0.09724316,103670.0,103660.0,0.00742329]
[1738180452636,0.39193216,103670.0,103660.0,0.00742329]
[1738180453062,0.39193216,103670.0,103660.0,0.00642329]
[1738180453277,0.39193216,103670.0,103660.0,0.00942329]
[1738180453695,0.24724316,103670.0,103660.0,0.00942329]
[1738180453906,0.39193216,103670.0,103660.0,0.00942329]
[1738180454128,0.24724316,103670.0,103660.0,0.15412629]
[1738180454750,0.24724316,103670.0,103660.0,0.15112629]
[1738180454956,0.24824316,103670.0,103660.0,0.16812849]
[1738180455160,0.24824316,103670.0,103660.0,0.00642329]
[1738180455362,0.39293216,103670.0,103660.0,0.00642329]
[1738180455565,0.41493216,103670.0,103660.0,0.00642329]
[1738180456388,0.177717,103650.0,103640.0,0.0001423]
[1738180456598,0.49794552,103650.0,103640.0,1e-08]
[1738180456811,0.46374016,103650.0,103640.0,1e-08]
[1738180457227,0.44074016,103650.0,103640.0,1e-08]
[1738180457431,0.29602316,103650.0,103640.0,1e-08]
[1738180457840,0.44074016,103650.0,103640.0,1e-08]
[1738180458452,0.29602316,103650.0,103640.0,1e-08]
[1738180458653,0.44074016,103650.0,103640.0,1e-08]
[1738180458855,0.30402316,103650.0,103640.0,0.00100001]
[1738180459055,0.44874016,103650.0,103640.0,0.00100001]
[1738180459285,0.44074016,103650.0,103640.0,1e-08]